[Event "Titled Tuesday Blitz July 11 Late 2023"]
[White "Papayan, Oleg"]
[Black "Caruana, Fabiano"]
[WhiteFideId "4193911"]
[BlackFideId "2020009"]
[WhiteElo "2516"]
[BlackElo "3120"]
[Result "0-1"]
[Round "1"]
[TimeControl "180+2"]
[Date "2023.07.11"]
[WhiteClock "0:00:03"]
[BlackClock "0:00:59"]
[Board "3"]

1. e4 {[%clk 0:02:54]}  c6 {[%clk 0:03:00]} 2. Nc3 {[%clk 0:02:52]}  d5 {[%clk 0:02:59]} 3. Nf3 {[%clk 0:02:53]}  b5 {[%clk 0:02:56]} 4. a3 {[%clk 0:02:51]}  a6 {[%clk 0:02:51]} 5. d4 {[%clk 0:02:50]}  Bg4 {[%clk 0:02:49]} 6. h3 {[%clk 0:02:37]}  Bh5 {[%clk 0:02:42]} 7. Be2 {[%clk 0:02:24]}  e6 {[%clk 0:02:39]} 8. O-O {[%clk 0:02:22]}  Nf6 {[%clk 0:02:33]} 9. Bg5 {[%clk 0:02:05]}  Be7 {[%clk 0:02:31]} 10. e5 {[%clk 0:02:04]}  Nfd7 {[%clk 0:02:30]} 11. Bxe7 {[%clk 0:02:04]}  Qxe7 {[%clk 0:02:31]} 12. b4 {[%clk 0:01:58]}  Nb6 {[%clk 0:02:23]} 13. Nd2 {[%clk 0:01:54]}  Bg6 {[%clk 0:02:22]} 14. Nb3 {[%clk 0:01:51]}  O-O {[%clk 0:02:22]} 15. Nc5 {[%clk 0:01:25]}  N8d7 {[%clk 0:02:19]} 16. a4 {[%clk 0:01:09]}  Nxc5 {[%clk 0:02:15]} 17. dxc5 {[%clk 0:01:01]}  Nd7 {[%clk 0:02:11]} 18. axb5 {[%clk 0:00:55]}  axb5 {[%clk 0:02:11]} 19. f4 {[%clk 0:00:43]}  Nxc5 {[%clk 0:02:08]} 20. Qd4 {[%clk 0:00:28]}  Nd7 {[%clk 0:01:55]} 21. Bd3 {[%clk 0:00:26]}  f6 {[%clk 0:01:49]} 22. Ra7 {[%clk 0:00:13]}  Rxa7 {[%clk 0:01:21]} 23. Qxa7 {[%clk 0:00:12]}  fxe5 {[%clk 0:01:22]} 24. Bxg6 {[%clk 0:00:12]}  hxg6 {[%clk 0:01:21]} 25. fxe5 {[%clk 0:00:12]}  Rxf1+ {[%clk 0:01:20]} 26. Kxf1 {[%clk 0:00:12]}  Qf8+ {[%clk 0:01:18]} 27. Ke2 {[%clk 0:00:12]}  Nxe5 {[%clk 0:01:18]} 28. Qc7 {[%clk 0:00:09]}  Qf5 {[%clk 0:01:05]} 29. Kd1 {[%clk 0:00:04]}  Qf1+ {[%clk 0:00:58]} 30. Kd2 {[%clk 0:00:03]}  Nc4# {[%clk 0:00:59]} 0-1


[Site "https://www.chess.com"]

[Event "Titled Tuesday Blitz July 11 Late 2023"]
[White "Nepomniachtchi, Ian"]
[Black "Jovic, Stanoje"]
[WhiteFideId "4168119"]
[BlackFideId "905020"]
[WhiteElo "3113"]
[BlackElo "2514"]
[Result "1-0"]
[Round "1"]
[TimeControl "180+2"]
[Date "2023.07.11"]
[WhiteClock "0:02:11"]
[BlackClock "0:00:00"]
[Board "4"]

1. e4 {[%clk 0:02:50]}  c6 {[%clk 0:03:00]} 2. d4 {[%clk 0:02:49]}  d5 {[%clk 0:03:00]} 3. Nc3 {[%clk 0:02:50]}  dxe4 {[%clk 0:02:59]} 4. Nxe4 {[%clk 0:02:51]}  Nf6 {[%clk 0:02:59]} 5. Nxf6+ {[%clk 0:02:51]}  exf6 {[%clk 0:03:00]} 6. c3 {[%clk 0:02:52]}  Bd6 {[%clk 0:03:00]} 7. Bd3 {[%clk 0:02:53]}  O-O {[%clk 0:02:59]} 8. Ne2 {[%clk 0:02:53]}  Qc7 {[%clk 0:02:59]} 9. Qc2 {[%clk 0:02:53]}  h6 {[%clk 0:02:59]} 10. Bd2 {[%clk 0:02:47]}  Re8 {[%clk 0:02:59]} 11. O-O-O {[%clk 0:02:47]}  c5 {[%clk 0:02:59]} 12. Rde1 {[%clk 0:02:42]}  c4 {[%clk 0:02:54]} 13. Bh7+ {[%clk 0:02:41]}  Kh8 {[%clk 0:02:50]} 14. Ng3 {[%clk 0:02:36]}  Bd7 {[%clk 0:02:42]} 15. Rxe8+ {[%clk 0:02:35]}  Bxe8 {[%clk 0:02:42]} 16. Re1 {[%clk 0:02:36]}  Nc6 {[%clk 0:02:30]} 17. Bf5 {[%clk 0:02:34]}  g6 {[%clk 0:02:19]} 18. Be4 {[%clk 0:02:31]}  Kg7 {[%clk 0:02:16]} 19. Kb1 {[%clk 0:02:30]}  b5 {[%clk 0:02:14]} 20. Bc1 {[%clk 0:02:24]}  f5 {[%clk 0:01:58]} 21. Bxf5 {[%clk 0:02:24]}  Bxg3 {[%clk 0:01:53]} 22. hxg3 {[%clk 0:02:23]}  gxf5 {[%clk 0:01:51]} 23. Qxf5 {[%clk 0:02:24]}  Qd6 {[%clk 0:01:47]} 24. Ka1 {[%clk 0:02:22]}  b4 {[%clk 0:01:39]} 25. Rh1 {[%clk 0:02:21]}  bxc3 {[%clk 0:01:27]} 26. bxc3 {[%clk 0:02:20]}  Qg6 {[%clk 0:01:20]} 27. Bxh6+ {[%clk 0:02:20]}  Kg8 {[%clk 0:01:18]} 28. Qh3 {[%clk 0:02:16]}  f5 {[%clk 0:01:08]} 29. Bf4 {[%clk 0:02:12]}  Kf7 {[%clk 0:00:00]} 30. Qh8 {[%clk 0:02:11]} 1-0


[Site "https://www.chess.com"]

[Event "Titled Tuesday Blitz July 11 Late 2023"]
[White "Fedoseev, Vladimir"]
[Black "Dixit, Nikhil"]
[WhiteFideId "24130737"]
[BlackFideId "5059534"]
[WhiteElo "3072"]
[BlackElo "2511"]
[Result "1-0"]
[Round "1"]
[TimeControl "180+2"]
[Date "2023.07.11"]
[WhiteClock "0:02:40"]
[BlackClock "0:02:17"]
[Board "8"]

1. Nf3 {[%clk 0:02:59]}  Nf6 {[%clk 0:02:59]} 2. b3 {[%clk 0:02:59]}  g6 {[%clk 0:02:59]} 3. Bb2 {[%clk 0:02:59]}  Bg7 {[%clk 0:02:59]} 4. e3 {[%clk 0:03:00]}  O-O {[%clk 0:03:00]} 5. c4 {[%clk 0:03:01]}  d6 {[%clk 0:03:00]} 6. Nc3 {[%clk 0:03:01]}  c5 {[%clk 0:03:00]} 7. g3 {[%clk 0:03:01]}  Nc6 {[%clk 0:03:00]} 8. Bg2 {[%clk 0:03:01]}  Ne4 {[%clk 0:02:58]} 9. Rc1 {[%clk 0:02:52]}  Nxc3 {[%clk 0:02:56]} 10. Bxc3 {[%clk 0:02:51]}  e5 {[%clk 0:02:55]} 11. O-O {[%clk 0:02:50]}  e4 {[%clk 0:02:51]} 12. Ne1 {[%clk 0:02:46]}  f5 {[%clk 0:02:45]} 13. Bxg7 {[%clk 0:02:44]}  Kxg7 {[%clk 0:02:46]} 14. d3 {[%clk 0:02:43]}  exd3 {[%clk 0:02:43]} 15. Nxd3 {[%clk 0:02:43]}  Ne5 {[%clk 0:02:42]} 16. Nf4 {[%clk 0:02:42]}  Rb8 {[%clk 0:02:38]} 17. Qd2 {[%clk 0:02:41]}  Qe7 {[%clk 0:02:33]} 18. Rfd1 {[%clk 0:02:40]}  Rd8 {[%clk 0:02:33]} 19. Qc3 {[%clk 0:02:40]}  b6 {[%clk 0:02:30]} 20. Nd5 {[%clk 0:02:40]}  Qe6 {[%clk 0:02:20]} 21. f4 {[%clk 0:02:40]}  Kh6 {[%clk 0:02:17]} 22. fxe5 {[%clk 0:02:40]}  dxe5 {[%clk 0:02:17]} 23. e4 {[%clk 0:02:40]} 1-0


[Site "https://www.chess.com"]

[Event "Titled Tuesday Blitz July 11 Late 2023"]
[White "Tifferet, Shaked"]
[Black "Duda, Jan-Krzysztof"]
[WhiteFideId "2811529"]
[BlackFideId "1170546"]
[WhiteElo "2511"]
[BlackElo "3056"]
[Result "0-1"]
[Round "1"]
[TimeControl "180+2"]
[Date "2023.07.11"]
[WhiteClock "0:00:07"]
[BlackClock "0:00:58"]
[Board "9"]

1. e4 {[%clk 0:02:55]}  e5 {[%clk 0:02:58]} 2. Nf3 {[%clk 0:02:55]}  Nc6 {[%clk 0:02:59]} 3. Nc3 {[%clk 0:02:55]}  Nf6 {[%clk 0:02:56]} 4. Be2 {[%clk 0:02:55]}  d6 {[%clk 0:02:52]} 5. d4 {[%clk 0:02:55]}  Bd7 {[%clk 0:02:51]} 6. O-O {[%clk 0:02:55]}  g6 {[%clk 0:02:50]} 7. Bg5 {[%clk 0:02:45]}  h6 {[%clk 0:02:48]} 8. Bh4 {[%clk 0:02:38]}  Bg7 {[%clk 0:02:46]} 9. Bb5 {[%clk 0:02:05]}  exd4 {[%clk 0:02:15]} 10. Nxd4 {[%clk 0:02:03]}  Nxd4 {[%clk 0:02:00]} 11. Bxd7+ {[%clk 0:02:03]}  Qxd7 {[%clk 0:02:01]} 12. Qxd4 {[%clk 0:02:03]}  Nh5 {[%clk 0:01:59]} 13. Qd2 {[%clk 0:01:48]}  g5 {[%clk 0:01:55]} 14. Bg3 {[%clk 0:01:48]}  Nxg3 {[%clk 0:01:53]} 15. fxg3 {[%clk 0:01:47]}  c6 {[%clk 0:01:48]} 16. Rad1 {[%clk 0:01:45]}  Be5 {[%clk 0:01:45]} 17. Rf5 {[%clk 0:01:41]}  f6 {[%clk 0:01:39]} 18. Ne2 {[%clk 0:01:38]}  O-O-O {[%clk 0:01:38]} 19. b4 {[%clk 0:01:36]}  h5 {[%clk 0:01:37]} 20. h3 {[%clk 0:01:20]}  Qe6 {[%clk 0:01:35]} 21. c3 {[%clk 0:01:14]}  Qc4 {[%clk 0:01:32]} 22. Nd4 {[%clk 0:01:08]}  g4 {[%clk 0:01:32]} 23. hxg4 {[%clk 0:00:52]}  hxg4 {[%clk 0:01:33]} 24. Kf2 {[%clk 0:00:46]}  c5 {[%clk 0:01:28]} 25. Ne2 {[%clk 0:00:31]}  Qxe4 {[%clk 0:01:24]} 26. Qd3 {[%clk 0:00:31]}  Qxd3 {[%clk 0:01:19]} 27. Rxd3 {[%clk 0:00:32]}  Kd7 {[%clk 0:01:09]} 28. bxc5 {[%clk 0:00:17]}  Ke6 {[%clk 0:01:09]} 29. Rf4 {[%clk 0:00:18]}  Bxf4 {[%clk 0:01:03]} 30. Nxf4+ {[%clk 0:00:19]}  Kf7 {[%clk 0:01:04]} 31. cxd6 {[%clk 0:00:18]}  Rd7 {[%clk 0:01:04]} 32. c4 {[%clk 0:00:18]}  Rc8 {[%clk 0:01:03]} 33. Rd4 {[%clk 0:00:17]}  Rc6 {[%clk 0:01:03]} 34. Nd5 {[%clk 0:00:15]}  b5 {[%clk 0:00:59]} 35. cxb5 {[%clk 0:00:12]}  Rcxd6 {[%clk 0:00:58]} 36. b6 {[%clk 0:00:07]}  axb6 {[%clk 0:00:58]} 0-1


[Site "https://www.chess.com"]

[Event "Titled Tuesday Blitz July 11 Late 2023"]
[White "Martinez Alcantara, Jose Eduardo"]
[Black "Yedidia, Daniel"]
[WhiteFideId "3805662"]
[BlackFideId "30905907"]
[WhiteElo "3015"]
[BlackElo "2510"]
[Result "1-0"]
[Round "1"]
[TimeControl "180+2"]
[Date "2023.07.11"]
[WhiteClock "0:01:23"]
[BlackClock "0:00:04"]
[Board "12"]

1. e4 {[%clk 0:03:00]}  e5 {[%clk 0:02:59]} 2. Nf3 {[%clk 0:03:00]}  Nc6 {[%clk 0:03:00]} 3. Bb5 {[%clk 0:03:00]}  a6 {[%clk 0:03:00]} 4. Ba4 {[%clk 0:03:00]}  Nf6 {[%clk 0:03:01]} 5. d3 {[%clk 0:02:58]}  b5 {[%clk 0:03:00]} 6. Bb3 {[%clk 0:02:58]}  Be7 {[%clk 0:03:00]} 7. c3 {[%clk 0:02:56]}  O-O {[%clk 0:03:01]} 8. O-O {[%clk 0:02:55]}  d6 {[%clk 0:03:01]} 9. Re1 {[%clk 0:02:54]}  Na5 {[%clk 0:03:01]} 10. Bc2 {[%clk 0:02:53]}  c5 {[%clk 0:03:02]} 11. Nbd2 {[%clk 0:02:54]}  Nc6 {[%clk 0:03:02]} 12. Nf1 {[%clk 0:02:54]}  Qc7 {[%clk 0:03:01]} 13. Bg5 {[%clk 0:02:54]}  b4 {[%clk 0:02:58]} 14. Bxf6 {[%clk 0:02:53]}  Bxf6 {[%clk 0:02:58]} 15. Ne3 {[%clk 0:02:54]}  Be6 {[%clk 0:02:57]} 16. Bb3 {[%clk 0:02:54]}  Na5 {[%clk 0:02:56]} 17. Bxe6 {[%clk 0:02:45]}  fxe6 {[%clk 0:02:57]} 18. cxb4 {[%clk 0:02:45]}  cxb4 {[%clk 0:02:54]} 19. Rc1 {[%clk 0:02:42]}  Qb6 {[%clk 0:02:46]} 20. Qa4 {[%clk 0:02:39]}  Ra7 {[%clk 0:02:17]} 21. h4 {[%clk 0:02:27]}  Raf7 {[%clk 0:02:02]} 22. a3 {[%clk 0:02:26]}  b3 {[%clk 0:01:42]} 23. Qb4 {[%clk 0:02:21]}  Qd8 {[%clk 0:01:35]} 24. h5 {[%clk 0:02:07]}  Rb7 {[%clk 0:01:14]} 25. Qd2 {[%clk 0:02:02]}  Rbf7 {[%clk 0:01:03]} 26. Ng4 {[%clk 0:01:59]}  Nb7 {[%clk 0:01:00]} 27. h6 {[%clk 0:01:54]}  g6 {[%clk 0:00:52]} 28. Qe3 {[%clk 0:01:35]}  Nc5 {[%clk 0:00:49]} 29. Red1 {[%clk 0:01:35]}  Be7 {[%clk 0:00:40]} 30. Rxc5 {[%clk 0:01:32]}  Rxf3 {[%clk 0:00:35]} 31. gxf3 {[%clk 0:01:33]}  Bg5 {[%clk 0:00:04]} 32. Rc8 {[%clk 0:01:23]} 1-0


[Site "https://www.chess.com"]

[Event "Titled Tuesday Blitz July 11 Late 2023"]
[White "Khandelwal, Ankush"]
[Black "Paravyan, David"]
[WhiteFideId "413470"]
[BlackFideId "4194985"]
[WhiteElo "2508"]
[BlackElo "3013"]
[Result "0-1"]
[Round "1"]
[TimeControl "180+2"]
[Date "2023.07.11"]
[WhiteClock "0:00:05"]
[BlackClock "0:00:31"]
[Board "13"]

1. e4 {[%clk 0:02:59]}  e5 {[%clk 0:02:58]} 2. Nf3 {[%clk 0:02:59]}  Nf6 {[%clk 0:02:58]} 3. d4 {[%clk 0:02:47]}  Nxe4 {[%clk 0:02:58]} 4. Bd3 {[%clk 0:02:45]}  d5 {[%clk 0:02:58]} 5. Nxe5 {[%clk 0:02:44]}  Nd7 {[%clk 0:02:54]} 6. Nxd7 {[%clk 0:02:41]}  Bxd7 {[%clk 0:02:55]} 7. O-O {[%clk 0:02:39]}  Bd6 {[%clk 0:02:49]} 8. Nc3 {[%clk 0:02:39]}  Nxc3 {[%clk 0:02:48]} 9. bxc3 {[%clk 0:02:40]}  O-O {[%clk 0:02:47]} 10. Qh5 {[%clk 0:02:38]}  f5 {[%clk 0:02:45]} 11. Re1 {[%clk 0:02:36]}  Qf6 {[%clk 0:02:41]} 12. Qf3 {[%clk 0:02:24]}  c6 {[%clk 0:02:40]} 13. Bf4 {[%clk 0:02:23]}  Rae8 {[%clk 0:02:40]} 14. c4 {[%clk 0:01:53]}  dxc4 {[%clk 0:02:23]} 15. Bxc4+ {[%clk 0:01:52]}  Kh8 {[%clk 0:02:23]} 16. c3 {[%clk 0:01:51]}  h6 {[%clk 0:02:11]} 17. h3 {[%clk 0:01:39]}  Kh7 {[%clk 0:01:38]} 18. Qg3 {[%clk 0:01:36]}  Bxf4 {[%clk 0:01:35]} 19. Qxf4 {[%clk 0:01:37]}  Rxe1+ {[%clk 0:01:33]} 20. Rxe1 {[%clk 0:01:37]}  Re8 {[%clk 0:01:32]} 21. Rxe8 {[%clk 0:01:36]}  Bxe8 {[%clk 0:01:33]} 22. Qc7 {[%clk 0:01:35]}  Qg5 {[%clk 0:01:26]} 23. Be6 {[%clk 0:01:17]}  Bg6 {[%clk 0:01:06]} 24. f4 {[%clk 0:00:55]}  Qg3 {[%clk 0:01:00]} 25. Qb8 {[%clk 0:00:45]}  Qe1+ {[%clk 0:00:58]} 26. Kh2 {[%clk 0:00:44]}  Qxe6 {[%clk 0:00:58]} 27. Qxb7 {[%clk 0:00:44]}  a5 {[%clk 0:00:56]} 28. Qc7 {[%clk 0:00:35]}  a4 {[%clk 0:00:54]} 29. Qa5 {[%clk 0:00:35]}  Qxa2 {[%clk 0:00:52]} 30. h4 {[%clk 0:00:35]}  h5 {[%clk 0:00:50]} 31. Qa6 {[%clk 0:00:29]}  Qf2 {[%clk 0:00:45]} 32. Qxa4 {[%clk 0:00:24]}  Qxh4+ {[%clk 0:00:44]} 33. Kg1 {[%clk 0:00:24]}  Qe1+ {[%clk 0:00:43]} 34. Kh2 {[%clk 0:00:25]}  Qxc3 {[%clk 0:00:43]} 35. d5 {[%clk 0:00:20]}  cxd5 {[%clk 0:00:42]} 36. Qd7 {[%clk 0:00:16]}  Qf6 {[%clk 0:00:38]} 37. Qxd5 {[%clk 0:00:15]}  Qh4+ {[%clk 0:00:39]} 38. Kg1 {[%clk 0:00:16]}  Qxf4 {[%clk 0:00:39]} 39. Kh1 {[%clk 0:00:13]}  Qg3 {[%clk 0:00:39]} 40. Qd1 {[%clk 0:00:11]}  h4 {[%clk 0:00:36]} 41. Qe2 {[%clk 0:00:08]}  h3 {[%clk 0:00:32]} 42. gxh3 {[%clk 0:00:09]}  Qxh3+ {[%clk 0:00:31]} 43. Kg1 {[%clk 0:00:05]}  Qg4+ {[%clk 0:00:31]} 0-1


[Site "https://www.chess.com"]

[Event "Titled Tuesday Blitz July 11 Late 2023"]
[White "Andreikin, Dmitry"]
[Black "WindWhistler11"]
[WhiteFideId "4158814"]
[WhiteElo "3011"]
[BlackElo "2506"]
[Result "1-0"]
[Round "1"]
[TimeControl "180+2"]
[Date "2023.07.11"]
[WhiteClock "0:02:09"]
[BlackClock "0:00:01"]
[Board "14"]

1. d4 {[%clk 0:02:59]}  Nf6 {[%clk 0:02:57]} 2. c4 {[%clk 0:02:59]}  e6 {[%clk 0:02:52]} 3. Nf3 {[%clk 0:02:59]}  c5 {[%clk 0:02:49]} 4. g3 {[%clk 0:02:57]}  cxd4 {[%clk 0:02:47]} 5. Nxd4 {[%clk 0:02:58]}  Nc6 {[%clk 0:02:46]} 6. Bg2 {[%clk 0:02:58]}  a6 {[%clk 0:02:47]} 7. O-O {[%clk 0:02:57]}  Be7 {[%clk 0:02:43]} 8. Nc3 {[%clk 0:02:57]}  Qc7 {[%clk 0:02:39]} 9. b3 {[%clk 0:02:52]}  O-O {[%clk 0:02:28]} 10. Bb2 {[%clk 0:02:52]}  b6 {[%clk 0:02:27]} 11. Rc1 {[%clk 0:02:51]}  Bb7 {[%clk 0:02:17]} 12. Nd5 {[%clk 0:02:50]}  Qd8 {[%clk 0:02:10]} 13. Nxe7+ {[%clk 0:02:47]}  Qxe7 {[%clk 0:02:10]} 14. Qd2 {[%clk 0:02:46]}  Rac8 {[%clk 0:02:04]} 15. Rfd1 {[%clk 0:02:45]}  Rfd8 {[%clk 0:02:04]} 16. Qe3 {[%clk 0:02:42]}  Ng4 {[%clk 0:01:39]} 17. Nxc6 {[%clk 0:02:33]}  Bxc6 {[%clk 0:01:23]} 18. Qxb6 {[%clk 0:02:32]}  Bxg2 {[%clk 0:01:17]} 19. Kxg2 {[%clk 0:02:33]}  Rc6 {[%clk 0:01:07]} 20. Qa7 {[%clk 0:02:28]}  h5 {[%clk 0:00:47]} 21. h3 {[%clk 0:02:24]}  Nh6 {[%clk 0:00:43]} 22. Rd3 {[%clk 0:02:22]}  Nf5 {[%clk 0:00:43]} 23. e4 {[%clk 0:02:18]}  d6 {[%clk 0:00:15]} 24. Qxe7 {[%clk 0:02:15]}  Nxe7 {[%clk 0:00:16]} 25. Rcd1 {[%clk 0:02:15]}  Nc8 {[%clk 0:00:10]} 26. e5 {[%clk 0:02:14]}  Kf8 {[%clk 0:00:10]} 27. exd6 {[%clk 0:02:12]}  Nxd6 {[%clk 0:00:01]} 28. c5 {[%clk 0:02:09]} 1-0


[Site "https://www.chess.com"]

[Event "Titled Tuesday Blitz July 11 Late 2023"]
[White "Rakitic2010"]
[Black "Bortnyk, Mykola"]
[BlackFideId "14120836"]
[WhiteElo "2504"]
[BlackElo "3001"]
[Result "0-1"]
[Round "1"]
[TimeControl "180+2"]
[Date "2023.07.11"]
[WhiteClock "0:00:04"]
[BlackClock "0:00:42"]
[Board "15"]

1. e4 {[%clk 0:03:00]}  Nf6 {[%clk 0:02:59]} 2. e5 {[%clk 0:03:00]}  Nd5 {[%clk 0:02:59]} 3. c4 {[%clk 0:03:00]}  Nb6 {[%clk 0:03:00]} 4. d4 {[%clk 0:03:01]}  d6 {[%clk 0:03:00]} 5. exd6 {[%clk 0:03:01]}  cxd6 {[%clk 0:03:00]} 6. Nc3 {[%clk 0:03:01]}  g6 {[%clk 0:02:57]} 7. Be3 {[%clk 0:03:02]}  Bg7 {[%clk 0:02:58]} 8. Rc1 {[%clk 0:03:03]}  O-O {[%clk 0:02:58]} 9. b3 {[%clk 0:03:03]}  Nc6 {[%clk 0:02:57]} 10. Be2 {[%clk 0:03:01]}  e5 {[%clk 0:02:56]} 11. dxe5 {[%clk 0:02:53]}  dxe5 {[%clk 0:02:45]} 12. Qxd8 {[%clk 0:02:54]}  Rxd8 {[%clk 0:02:45]} 13. Nf3 {[%clk 0:02:54]}  h6 {[%clk 0:02:44]} 14. O-O {[%clk 0:02:54]}  f5 {[%clk 0:02:44]} 15. Rfd1 {[%clk 0:02:52]}  Be6 {[%clk 0:02:32]} 16. Nb5 {[%clk 0:02:47]}  e4 {[%clk 0:02:25]} 17. Ne1 {[%clk 0:02:39]}  Bf7 {[%clk 0:02:15]} 18. Rxd8+ {[%clk 0:02:23]}  Rxd8 {[%clk 0:02:15]} 19. Nxa7 {[%clk 0:02:23]}  Nd4 {[%clk 0:02:15]} 20. Kf1 {[%clk 0:02:14]}  Ra8 {[%clk 0:02:08]} 21. Nb5 {[%clk 0:01:58]}  Nxe2 {[%clk 0:02:07]} 22. Kxe2 {[%clk 0:01:54]}  Rxa2+ {[%clk 0:02:07]} 23. Rc2 {[%clk 0:01:54]}  Rxc2+ {[%clk 0:02:07]} 24. Nxc2 {[%clk 0:01:55]}  Nxc4 {[%clk 0:02:08]} 25. Bd4 {[%clk 0:01:52]}  Na5 {[%clk 0:02:02]} 26. Bxg7 {[%clk 0:01:50]}  Kxg7 {[%clk 0:02:03]} 27. b4 {[%clk 0:01:50]}  Bc4+ {[%clk 0:01:58]} 28. Ke3 {[%clk 0:01:49]}  Bxb5 {[%clk 0:01:56]} 29. bxa5 {[%clk 0:01:49]}  Kf6 {[%clk 0:01:57]} 30. Kd4 {[%clk 0:01:46]}  g5 {[%clk 0:01:52]} 31. g3 {[%clk 0:01:45]}  h5 {[%clk 0:01:49]} 32. Ne3 {[%clk 0:01:43]}  Bc6 {[%clk 0:01:46]} 33. Kc5 {[%clk 0:01:38]}  f4 {[%clk 0:01:44]} 34. Nc4 {[%clk 0:01:21]}  Ba4 {[%clk 0:01:40]} 35. Kd4 {[%clk 0:01:16]}  e3 {[%clk 0:01:31]} 36. fxe3 {[%clk 0:01:14]}  f3 {[%clk 0:01:32]} 37. Nd2 {[%clk 0:01:05]}  g4 {[%clk 0:01:28]} 38. e4 {[%clk 0:00:56]}  Bb5 {[%clk 0:01:27]} 39. Ke3 {[%clk 0:00:56]}  Ke5 {[%clk 0:01:27]} 40. Nb3 {[%clk 0:00:55]}  Bc6 {[%clk 0:01:16]} 41. Nc5 {[%clk 0:00:50]}  Kd6 {[%clk 0:01:16]} 42. Nd3 {[%clk 0:00:49]}  Be8 {[%clk 0:01:16]} 43. Nb4 {[%clk 0:00:45]}  Bb5 {[%clk 0:01:11]} 44. Nd5 {[%clk 0:00:39]}  Bc4 {[%clk 0:01:11]} 45. Nf4 {[%clk 0:00:22]}  Bf7 {[%clk 0:01:11]} 46. h3 {[%clk 0:00:20]}  Kc5 {[%clk 0:01:06]} 47. e5 {[%clk 0:00:20]}  Be8 {[%clk 0:01:04]} 48. hxg4 {[%clk 0:00:18]}  hxg4 {[%clk 0:01:05]} 49. Nd3+ {[%clk 0:00:19]}  Kd5 {[%clk 0:01:05]} 50. Kf4 {[%clk 0:00:18]}  Bd7 {[%clk 0:01:03]} 51. Nf2 {[%clk 0:00:18]}  Kd4 {[%clk 0:01:00]} 52. Nh1 {[%clk 0:00:11]}  Kd3 {[%clk 0:00:59]} 53. Kg5 {[%clk 0:00:11]}  Ke2 {[%clk 0:00:58]} 54. Kf6 {[%clk 0:00:11]}  f2 {[%clk 0:00:59]} 55. Nxf2 {[%clk 0:00:11]}  Kxf2 {[%clk 0:00:59]} 56. e6 {[%clk 0:00:11]}  Bc6 {[%clk 0:01:00]} 57. Ke7 {[%clk 0:00:09]}  Kxg3 {[%clk 0:00:58]} 58. Kd6 {[%clk 0:00:10]}  Bb5 {[%clk 0:00:40]} 59. Kc7 {[%clk 0:00:04]}  Kf4 {[%clk 0:00:40]} 60. Kxb7 {[%clk 0:00:04]}  Ke5 {[%clk 0:00:40]} 61. e7 {[%clk 0:00:04]}  Kd6 {[%clk 0:00:39]} 62. a6 {[%clk 0:00:02]}  Bxa6+ {[%clk 0:00:39]} 63. Kxa6 {[%clk 0:00:02]}  Kxe7 {[%clk 0:00:39]} 64. Kb5 {[%clk 0:00:02]}  g3 {[%clk 0:00:40]} 65. Kc4 {[%clk 0:00:03]}  g2 {[%clk 0:00:41]} 66. Kd3 {[%clk 0:00:04]}  g1=Q {[%clk 0:00:42]} 67. Ke2 {[%clk 0:00:04]}  Qg3 {[%clk 0:00:42]} 0-1


[Site "https://www.chess.com"]

[Event "Titled Tuesday Blitz July 11 Late 2023"]
[White "Deac, Bogdan-Daniel"]
[Black "Peycheva, Gergana"]
[WhiteFideId "1226380"]
[BlackFideId "2916711"]
[WhiteElo "2992"]
[BlackElo "2503"]
[Result "1-0"]
[Round "1"]
[TimeControl "180+2"]
[Date "2023.07.11"]
[WhiteClock "0:02:08"]
[BlackClock "0:00:13"]
[Board "16"]

1. b3 {[%clk 0:03:00]}  d5 {[%clk 0:02:57]} 2. Bb2 {[%clk 0:03:00]}  Nf6 {[%clk 0:02:54]} 3. e3 {[%clk 0:02:56]}  Bf5 {[%clk 0:02:52]} 4. c4 {[%clk 0:02:56]}  e6 {[%clk 0:02:51]} 5. cxd5 {[%clk 0:02:57]}  exd5 {[%clk 0:02:51]} 6. Qf3 {[%clk 0:02:56]}  Be4 {[%clk 0:02:06]} 7. Bxf6 {[%clk 0:02:55]}  gxf6 {[%clk 0:02:04]} 8. Qh5 {[%clk 0:02:54]}  Bg7 {[%clk 0:01:56]} 9. Nc3 {[%clk 0:02:49]}  O-O {[%clk 0:01:47]} 10. Nxe4 {[%clk 0:02:26]}  dxe4 {[%clk 0:01:44]} 11. Ne2 {[%clk 0:02:26]}  Nc6 {[%clk 0:00:44]} 12. Ng3 {[%clk 0:02:25]}  Nb4 {[%clk 0:00:39]} 13. Rc1 {[%clk 0:02:24]}  b6 {[%clk 0:00:20]} 14. Rc4 {[%clk 0:02:10]}  Kh8 {[%clk 0:00:13]} 15. Rxb4 {[%clk 0:02:08]} 1-0


[Site "https://www.chess.com"]

[Event "Titled Tuesday Blitz July 11 Late 2023"]
[White "Zhang, Derek"]
[Black "Bok, Benjamin"]
[WhiteFideId "2087871"]
[BlackFideId "1017063"]
[WhiteElo "2501"]
[BlackElo "2992"]
[Result "1-0"]
[Round "1"]
[TimeControl "180+2"]
[Date "2023.07.11"]
[WhiteClock "0:00:32"]
[BlackClock "0:00:00"]
[Board "17"]

1. Nf3 {[%clk 0:03:00]}  d5 {[%clk 0:02:57]} 2. c4 {[%clk 0:03:01]}  e6 {[%clk 0:02:55]} 3. e3 {[%clk 0:03:01]}  Nf6 {[%clk 0:02:53]} 4. Nc3 {[%clk 0:03:02]}  c6 {[%clk 0:02:51]} 5. b3 {[%clk 0:03:02]}  Bd6 {[%clk 0:02:50]} 6. Bb2 {[%clk 0:03:02]}  O-O {[%clk 0:02:51]} 7. Be2 {[%clk 0:03:01]}  b6 {[%clk 0:02:47]} 8. Qc2 {[%clk 0:03:00]}  Bb7 {[%clk 0:02:46]} 9. Rg1 {[%clk 0:03:01]}  Na6 {[%clk 0:02:39]} 10. g4 {[%clk 0:03:00]}  c5 {[%clk 0:02:33]} 11. g5 {[%clk 0:02:46]}  Ne4 {[%clk 0:01:42]} 12. cxd5 {[%clk 0:02:45]}  exd5 {[%clk 0:01:37]} 13. Nxe4 {[%clk 0:02:38]}  dxe4 {[%clk 0:01:35]} 14. Bxa6 {[%clk 0:02:37]}  Bxa6 {[%clk 0:01:31]} 15. Qxe4 {[%clk 0:02:37]}  Re8 {[%clk 0:01:23]} 16. Qd5 {[%clk 0:02:29]}  Bf8 {[%clk 0:01:03]} 17. Qxd8 {[%clk 0:02:05]}  Raxd8 {[%clk 0:01:04]} 18. d4 {[%clk 0:02:05]}  cxd4 {[%clk 0:00:43]} 19. Nxd4 {[%clk 0:01:53]}  Bb4+ {[%clk 0:00:42]} 20. Kd1 {[%clk 0:01:53]}  Rd5 {[%clk 0:00:32]} 21. Rc1 {[%clk 0:01:50]}  g6 {[%clk 0:00:26]} 22. Rc7 {[%clk 0:01:47]}  Re7 {[%clk 0:00:23]} 23. Rxe7 {[%clk 0:01:38]}  Bxe7 {[%clk 0:00:24]} 24. f4 {[%clk 0:01:29]}  Bd3 {[%clk 0:00:19]} 25. Kd2 {[%clk 0:01:25]}  Be4 {[%clk 0:00:18]} 26. Rc1 {[%clk 0:01:25]}  Bb4+ {[%clk 0:00:18]} 27. Bc3 {[%clk 0:01:25]}  Bf8 {[%clk 0:00:18]} 28. Bb2 {[%clk 0:01:19]}  Bb4+ {[%clk 0:00:18]} 29. Ke2 {[%clk 0:01:20]}  Rc5 {[%clk 0:00:14]} 30. Rxc5 {[%clk 0:01:06]}  Bxc5 {[%clk 0:00:14]} 31. Nb5 {[%clk 0:01:06]}  a6 {[%clk 0:00:12]} 32. Nc3 {[%clk 0:01:06]}  Bb7 {[%clk 0:00:07]} 33. Kd3 {[%clk 0:01:05]}  Kf8 {[%clk 0:00:07]} 34. Ne4 {[%clk 0:01:04]}  Be7 {[%clk 0:00:06]} 35. Bf6 {[%clk 0:01:01]}  Bb4 {[%clk 0:00:06]} 36. Bd4 {[%clk 0:01:00]}  Ba5 {[%clk 0:00:02]} 37. Nf6 {[%clk 0:00:59]}  h5 {[%clk 0:00:02]} 38. gxh6 {[%clk 0:00:59]}  Bf3 {[%clk 0:00:02]} 39. Nd7+ {[%clk 0:00:51]}  Kg8 {[%clk 0:00:02]} 40. Bxb6 {[%clk 0:00:45]}  Be1 {[%clk 0:00:02]} 41. Bd4 {[%clk 0:00:42]}  Kh7 {[%clk 0:00:02]} 42. Bg7 {[%clk 0:00:41]}  g5 {[%clk 0:00:02]} 43. fxg5 {[%clk 0:00:37]}  Bh4 {[%clk 0:00:02]} 44. Bf6 {[%clk 0:00:32]}  Kg6 {[%clk 0:00:01]} 45. Ne5+ {[%clk 0:00:32]}  Kh7 {[%clk 0:00:00]} 46. Nxf3 {[%clk 0:00:32]} 1-0


[Site "https://www.chess.com"]